Workbook

Sheet Cover
B3: Excel + VBA
B4: für Controller
B7: Kapitel | C7: 7
B8: Thema | C8: Strategisches Prozess-Controlling
B10: Inhalt | C10: Zinsrechnungen
B18: Version | C18: 1.0
B19: Autor | C19: Harald Nahrstedt
B20: Datum | C20: 2023-08-03
B23: Springer Verlag

Sheet Einfache Zinsrechnung
A1: Anfangskapital | B1: 80000
A2: Zinssatz | B2: 0.035
A3: Laufzeit [Jahre] | B3: 6
A5: Jahr | B5: Anfangskapital | C5: Zinsen
A6: 1 | B6: =Anfangskapital1 -> 80000 | C6: =Anfangskapital1*Zinssatz1 -> 2800
A7: 2 | B7: 80000 | C7: 2800
A8: 3 | B8: 80000 | C8: 2800
A9: 4 | B9: 80000 | C9: 2800
A10: 5 | B10: 80000 | C10: 2800
A11: 6 | B11: 80000 | C11: 2800
C12: =SUM(Zinsen1) -> 16800

Sheet Zinseszinsrechnung
A1: Anfangskapital | B1: 80000
A2: Zinssatz | B2: 0.035
A3: Laufzeit [Jahre] | B3: 6
A5: Jahr | B5: Anfangskapital | C5: Zinsen | D5: Kapital+Zinsen
A6: 1 | B6: =Anfangskapital2 -> 80000 | C6: =B6*Zinssatz2 -> 2800 | D6: =B6+C6 -> 82800
A7: 2 | B7: =D6 -> 82800 | C7: 2898 | D7: =B7+C7 -> 85698
A8: 3 | B8: =D7 -> 85698 | C8: 2999.43 | D8: =B8+C8 -> 88697.43
A9: 4 | B9: 88697.43 | C9: 3104.41005 | D9: 91801.84005
A10: 5 | B10: 91801.84005 | C10: 3213.064402 | D10: 95014.90445
A11: 6 | B11: 95014.90445 | C11: 3325.521656 | D11: 98340.42611
C12: =SUM(Zinsen2) -> 18340.42611

Sheet EFFEKTIV-Funktion
A1: Anfangskapital | B1: 80000
A2: Zinssatz | B2: 0.035
A3: Anzahl der Zahliungen/Jahr | B3: 2
A5: Effektivverzinsung | B5: =EFFECT(Zinssatz3,Anzahl3) -> 0.03530625

Sheet Ratentilgung
A1: Kredit | B1: 80000
A2: Zinssatz | B2: 0.035
A3: Laufzeit [Jahre] | B3: 6
A5: Jahr | B5: Restschuld | C5: Zinsen | D5: Tilgung | E5: Annuität
A6: 1 | B6: =Kredit4 -> 80000 | C6: =B6*Zinssatz4 -> 2800 | D6: =Kredit4/Laufzeit4 -> 13333.33333 | E6: =Zinsen4+Tilgung4 -> 16133.33333
A7: 2 | B7: =B6-D6 -> 66666.66667 | C7: =B7*Zinssatz4 -> 2333.333333 | D7: 13333.33333 | E7: 15666.66667
A8: 3 | B8: =B7-D7 -> 53333.33333 | C8: =B8*B$2 -> 1866.666667 | D8: 13333.33333 | E8: 15200
A9: 4 | B9: 40000 | C9: 1400 | D9: 13333.33333 | E9: 14733.33333
A10: 5 | B10: 26666.66667 | C10: 933.3333333 | D10: 13333.33333 | E10: 14266.66667
A11: 6 | B11: =B10-D10 -> 13333.33333 | C11: 466.6666667 | D11: 13333.33333 | E11: 13800
C12: =SUM(Zinsen4) -> 9800 | D12: =SUM(Tilgung4) -> 80000 | E12: =SUM(Annuität4) -> 89800

Sheet Annuitätentilgung
A1: Kredit | B1: 80000
A2: Zinssatz | B2: 0.03472707629
A3: Laufzeit [Jahre] | B3: 6
A5: Jahr | B5: Restschuld | C5: Zinsen | D5: Tilgung | E5: Annuität
A6: 1 | B6: =Kredit5 -> 80000 | C6: =B6*Zinssatz5 -> 2778.166104 | D6: =Annuität5-Zinsen5 -> 12221.8339 | E6: 15000
A7: 2 | B7: =B6-D6 -> 67778.1661 | C7: =B7*B$2 -> 2353.737545 | D7: =E7-C7 -> 12646.26245 | E7: 15000
A8: 3 | B8: =B7-D7 -> 55131.90365 | C8: =B8*B$2 -> 1914.569824 | D8: =E8-C8 -> 13085.43018 | E8: 15000
A9: 4 | B9: 42046.47347 | C9: 1460.151092 | D9: 13539.84891 | E9: 15000
A10: 5 | B10: 28506.62457 | C10: 989.9517262 | D10: 14010.04827 | E10: 15000
A11: 6 | B11: =B10-D10 -> 14496.57629 | C11: =B11*B$2 -> 503.4237109 | D11: =E11-C11 -> 14496.57629 | E11: 15000
B12: =B11-D11 -> 2.267077434e-06 | C12: =SUM(C6:C11) -> 10000 | D12: =SUM(D6:D11) -> 80000 | E12: =SUM(E6:E11) -> 90000

Sheet Opt.Annuitätentilgung
A1: Startkapital | C1: 80000
A2: Endkapital | C2: 0
A3: Zinssatz | C3: 0.035
A4: Laufzeit [Jahre] | C4: 6
A5: Annuität | C5: =PMT(Zinssatz6,Laufzeit6,Startkapital6,Endkapital6) -> -15013.45669
A7: Jahr | B7: Startkapital | C7: Zinsen | D7: Tilgung | E7: Annuität | F7: Endkapital
A8: 1 | B8: =Startkapital6 -> 80000 | C8: =B8*Zinssatz6 -> 2800 | D8: =ABS(Annuität6)-C8 -> 12213.45669 | E8: =Annuität6 -> -15013.45669 | F8: =B8-D8 -> 67786.54331
A9: 2 | B9: =F8 -> 67786.54331 | C9: 2372.529016 | D9: 12640.92768 | E9: -15013.45669 | F9: 55145.61563
A10: 3 | B10: =F9 -> 55145.61563 | C10: 1930.096547 | D10: 13083.36015 | E10: -15013.45669 | F10: 42062.25548
A11: 4 | B11: =F10 -> 42062.25548 | C11: 1472.178942 | D11: 13541.27775 | E11: -15013.45669 | F11: 28520.97773
A12: 5 | B12: =F11 -> 28520.97773 | C12: 998.2342206 | D12: 14015.22247 | E12: -15013.45669 | F12: 14505.75526
A13: 6 | B13: =F12 -> 14505.75526 | C13: 507.7014341 | D13: 14505.75526 | E13: -15013.45669 | F13: -1.818989404e-11

Sheet Finanzmath.Funktionen
A1: Startkapital | C1: 80000
A2: Endkapital | C2: 0
A3: Zinssatz | C3: 0.035
A4: Laufzeit [Jahre] | C4: 6
A5: Annuität | C5: =PMT(Zinssatz7,Laufzeit7,Startkapital7,Endkapital7) -> -15013.45669
A7: Jahr | B7: Zinsen | C7: Tilgung | D7: Endkapital
A8: 1 | B8: =ABS(IPMT(Zinssatz7,Jahr7,Laufzeit7,Startkapital7,Endkapital7)) -> 2800 | C8: =ABS(PPMT(Zinssatz7,Jahr7,Laufzeit7,Startkapital7,Endkapital7)) -> 12213.45669 | D8: =ABS(FV(Zinssatz7,Jahr7,Annuität7,Startkapital7)) -> 67786.54331
A9: 2 | B9: 2372.529016 | C9: 12640.92768 | D9: 55145.61563
A10: 3 | B10: 1930.096547 | C10: 13083.36015 | D10: 42062.25548
A11: 4 | B11: 1472.178942 | C11: 13541.27775 | D11: 28520.97773
A12: 5 | B12: 998.2342206 | C12: 14015.22247 | D12: 14505.75526
A13: 6 | B13: 507.7014341 | C13: 14505.75526 | D13: 1.455191523e-10

Sheet Kreditvergleich
A1: Kredit | C1: 80000
A2: Restwert | C2: 0
A3: Zinssatz | C3: 0.035
A4: Laufzeit [Jahre] | C4: 6
B6: Annuität | C6: Kredit
B7: =-PMT(Zinssatz8,Laufzeit8,Kredit8,Restwert8) -> 15013.45669 | C7: 70000 | D7: 80000 | E7: 90000 | F7: 100000
A8: Zinssatz | B8: 0.03 | C8: 12921.82503 | D8: 14767.80004 | E8: 16613.77504 | F8: 18459.75005
B9: 0.0325 | C9: 13029.09785 | D9: 14890.39754 | E9: 16751.69723 | F9: 18612.99692
B10: 0.035 | C10: 13136.77461 | D10: 15013.45669 | E10: 16890.13878 | F10: 18766.82087
B11: 0.0375 | C11: 13244.85362 | D11: 15136.97556 | E11: 17029.09751 | F11: 18921.21945
B12: 0.04 | C12: 13353.33318 | D12: 15260.9522 | E12: 17168.57123 | F12: 19076.19025
B13: 0.0425 | C13: 13462.21158 | D13: 15385.38467 | E13: 17308.55775 | F13: 19231.73083
B14: 0.045 | C14: 13571.48713 | D14: 15510.271 | E14: 17449.05488 | F14: 19387.83875
